bitfinex-derivatives/quotes_SOLF0:USTF0_20220106
["timestamp","ask_amount","ask_price","bid_price","bid_amount"]
[1641434022605,55.79880963,152.0,151.87,15.11097674]
[1641434023005,55.79880963,152.0,151.91,4.0]
[1641434023204,27.66479,151.99,151.91,27.66479]
[1641434024504,27.66479,151.99,151.9,4.65297674]
[1641434024905,12.1793936,151.98,151.9,4.65297674]
[1641434025108,27.66479,151.95,151.9,4.65297674]
[1641434025306,31.66479,151.95,151.9,4.65297674]
[1641434025506,27.66479,151.95,151.9,4.65297674]
[1641434025708,16.1793936,151.94,151.87,4.65297674]
[1641434025907,4.0,151.91,151.87,4.65297674]
[1641434026106,4.0,151.91,151.76,48.47955847]
[1641434026107,4.0,151.88,151.76,48.47955847]
[1641434026507,4.0,151.87,151.76,48.47955847]
[1641434026707,4.0,151.86,151.76,48.47955847]
[1641434027010,4.75,151.87,151.72,63.6521]
[1641434027207,37.22337581,151.83,151.72,67.6521]
[1641434027408,37.22337581,151.83,151.72,6.58002961]
[1641434028408,37.22337581,151.84,151.72,13.00616049]
[1641434028607,37.22337581,151.84,151.72,17.00616049]
[1641434029008,37.22337581,151.84,151.72,13.00616049]
[1641434029213,37.22337581,151.84,151.76,27.66479]
[1641434030009,37.22337581,151.84,151.77,4.0]
[1641434030209,4.0,151.83,151.71,27.66479]
[1641434030410,4.0,151.83,151.69,70.04522877]
[1641434030411,6.58327847,151.82,151.69,63.4639]
[1641434030612,6.58479571,151.79,151.69,63.4639]
[1641434030909,11.06379571,151.79,151.65,4.0]
[1641434031110,11.06379571,151.79,151.62,286.12480151]
[1641434031312,37.22337581,151.79,151.72,4.0]
[1641434031609,37.22337581,151.79,151.72,9.847]
[1641434032011,37.22337581,151.79,151.72,5.847]
[1641434032209,37.22337581,151.79,151.72,9.847]
[1641434032510,37.22337581,151.84,151.72,9.847]
[1641434033409,64.88816581,151.84,151.75,4.0]
[1641434033610,37.22337581,151.83,151.75,4.0]
[1641434033812,37.22337581,151.83,151.74,27.66479]
[1641434034011,37.22337581,151.83,151.75,4.0]
[1641434034213,37.22337581,151.83,151.78,4.0]
[1641434034415,7.581e-05,151.83,151.81,4.0]
[1641434034614,7.581e-05,151.86,151.76,5.716]
[1641434034815,7.581e-05,151.86,151.8,4.0]
[1641434035015,7.581e-05,151.86,151.79,4.0]
[1641434035215,7.581e-05,151.86,151.8,4.0]
[1641434035415,29.37046259,151.89,151.85,27.66479]
[1641434035615,34.24395379,151.92,151.85,27.66479]
[1641434036616,32.77697548,151.94,151.85,27.66479]
[1641434036816,15.58590649,151.91,151.85,27.66479]
[1641434037617,15.58590649,151.94,151.85,27.66479]
[1641434039020,19.58590649,151.94,151.82,27.66479]
[1641434039217,6.57916379,151.92,151.82,27.66479]
[1641434039418,34.24395379,151.92,151.82,27.66479]
[1641434039918,27.66479,151.92,151.82,27.66479]
[1641434040118,27.66479,151.92,151.83,4.0]
[1641434040521,27.66479,151.92,151.84,4.0]
[1641434040720,15.58590649,151.91,151.84,1.24855219]
[1641434041319,21.32890649,151.91,151.84,1.24855219]
[1641434041923,27.90828671,151.91,151.83,7.68051509]
[1641434042321,31.90828671,151.91,151.83,7.68051509]
[1641434042522,31.90828671,151.91,151.83,1.24855219]
[1641434042723,6.58089566,151.88,151.8,1.24855219]
[1641434043422,4.0,151.87,151.8,1.24855219]
[1641434043624,6.58197854,151.85,151.8,1.24855219]
[1641434043822,6.58197854,151.85,151.77,1.24855219]
[1641434044222,10.58197854,151.85,151.77,1.24855219]
[1641434044422,6.5837119,151.81,151.77,1.24855219]
[1641434044622,13.1467119,151.81,151.76,1.24855219]
[1641434044922,13.14692863,151.81,151.76,1.24855219]
[1641434045427,17.14692863,151.81,151.76,1.24855219]
[1641434045625,27.66479,151.8,151.76,1.24855219]
[1641434045824,27.66479,151.8,151.66,55.85408621]
[1641434046024,4.0,151.78,151.67,7.68029583]
[1641434046223,31.07130289,151.8,151.67,7.68029583]
[1641434046224,4.0,151.77,151.67,7.68029583]
[1641434046423,4.0,151.76,151.67,7.68029583]
[1641434046625,8.809,151.77,151.67,7.68029583]
[1641434047027,4.809,151.77,151.67,7.68029583]
[1641434047226,10.5869644,151.74,151.67,6.43250667]
[1641434047425,4.0,151.72,151.61,6.43250667]
[1641434047626,6.58891744,151.69,151.61,6.43250667]
[1641434048227,10.58891744,151.69,151.61,6.43250667]
[1641434048725,6.58891744,151.69,151.59,27.66479]
[1641434048926,18.76831104,151.69,151.59,27.66479]
[1641434049226,6.59043728,151.66,151.59,27.66479]
[1641434049425,12.31043728,151.66,151.59,27.66479]
[1641434049625,12.31043728,151.66,151.56,27.66479]
[1641434050925,6.5915233,151.63,151.54,27.66479]
[1641434051127,6.5915233,151.63,151.57,6.43298672]
[1641434051529,12.1793936,151.68,151.57,34.09777672]
[1641434052126,12.1793936,151.68,151.57,38.09777672]
[1641434052327,6.58913452,151.69,151.57,34.09777672]
[1641434053027,6.58913452,151.69,151.57,27.66479]
[1641434053227,27.66479,151.7,151.57,27.66479]
[1641434053428,6.58978583,151.67,151.57,27.66479]
[1641434053830,12.82878583,151.67,151.58,6.43298672]
[1641434054432,6.239,151.67,151.58,6.43298672]
[1641434054833,12.21031509,151.69,151.63,4.0]
[1641434055036,55.85408621,151.74,151.64,4.0]
[1641434055233,55.85408621,151.74,151.65,4.0]
[1641434055433,55.85408621,151.74,151.64,4.0]
[1641434055633,37.2706321,151.78,151.71,27.66479]
[1641434056538,37.2706321,151.78,151.71,32.70379]
[1641434056737,37.2706321,151.78,151.73,4.0]
[1641434057335,37.2706321,151.79,151.71,27.66479]
[1641434057536,43.85542781,151.79,151.71,27.66479]
[1641434058236,43.85542781,151.79,151.69,41.63957552]
[1641434058436,47.85542781,151.79,151.68,13.97478552]
[1641434059536,27.66479,151.76,151.68,13.97478552]
[1641434059737,37.2706321,151.78,151.67,41.63957552]
[1641434060137,37.2706321,151.78,151.69,4.0]
[1641434060337,37.2706321,151.78,151.67,41.63957552]
[1641434060737,6.58414538,151.8,151.7,13.97478552]
[1641434062742,37.2706321,151.79,151.68,13.97478552]
[1641434063142,4.0,151.76,151.68,13.97478552]
[1641434063341,6.58587987,151.76,151.68,13.97478552]
[1641434063541,27.66479,151.73,151.68,13.97478552]
[1641434063742,32.69179,151.73,151.68,13.97478552]
[1641434063943,6.5882663,151.71,151.68,13.97478552]
[1641434064345,6.5882663,151.71,151.67,27.66479]
[1641434064745,32.69179,151.73,151.67,27.66479]
[1641434065245,27.66479,151.73,151.67,27.66479]
[1641434065445,37.2706321,151.75,151.67,27.66479]
[1641434065847,37.2706321,151.75,151.68,4.0]
[1641434066048,37.2706321,151.75,151.67,27.66479]
[1641434066250,37.2706321,151.76,151.68,4.0]
[1641434066449,37.2706321,151.76,151.67,27.66479]
[1641434066850,5.35,151.79,151.7,13.97478552]
[1641434067049,43.85456073,151.81,151.7,13.97478552]
[1641434067551,27.66479,151.78,151.7,41.63957552]
[1641434067949,64.9354221,151.78,151.7,27.66479]
[1641434068149,69.4994221,151.78,151.7,27.66479]
[1641434068350,41.8346321,151.78,151.7,27.66479]
[1641434069150,37.2706321,151.78,151.7,27.66479]
[1641434069750,37.2706321,151.78,151.75,4.0]
[1641434069951,17.21539047,151.8,151.76,4.0]
[1641434070350,37.26374094,151.79,151.73,4.0]
[1641434070549,37.26374094,151.79,151.7,34.24590221]
[1641434070550,1e-08,151.79,151.7,34.24590221]
[1641434070752,1e-08,151.79,151.7,38.24590221]
[1641434070949,1e-08,151.79,151.71,4.0]
[1641434071149,1e-08,151.79,151.7,31.66479]
[1641434071351,17.21539047,151.82,151.72,13.97478552]
[1641434071549,27.66479,151.82,151.72,13.97478552]
[1641434072351,27.66479,151.82,151.72,17.97478552]
[1641434072551,27.66479,151.82,151.72,13.97478552]
[1641434072751,27.66479,151.82,151.71,13.97478552]
[1641434073351,4.0,151.8,151.71,13.97478552]
[1641434073752,4.0,151.8,151.67,62.0766]
[1641434073753,27.66479,151.77,151.73,13.97478552]
[1641434074655,6.5837119,151.81,151.73,13.97478552]
[1641434074852,23.7940083,151.81,151.71,4.0]
[1641434075552,23.7940083,151.81,151.73,4.0]
[1641434075752,17.2102964,151.81,151.74,27.66479]
[1641434075952,17.2102964,151.81,151.76,4.0]
[1641434076352,55.85408621,151.82,151.74,33.83879]
[1641434076554,12.18718705,151.81,151.76,4.0]
[1641434076952,12.18718705,151.81,151.77,4.0]
[1641434077555,6.58046261,151.89,151.78,4.0]
[1641434077755,6.58046261,151.89,151.84,27.66479]
[1641434078355,174.51887621,151.91,151.84,27.66479]
[1641434078555,55.85408621,151.91,151.84,32.13579]
[1641434078754,17.19039378,151.9,151.84,32.13579]
[1641434078955,17.19039378,151.9,151.84,24.68658096]
[1641434079156,17.19039378,151.9,151.81,27.66479]
[1641434079355,4.0,151.89,151.8,13.97478552]
[1641434079757,27.66479,151.84,151.8,13.97478552]
[1641434079954,27.66479,151.86,151.8,13.97478552]
[1641434080157,4.0,151.91,151.8,13.97478552]
[1641434080355,55.85408621,151.9,151.77,4.0]
[1641434081559,66.43325,151.92,151.77,17.97478552]
[1641434081757,27.66479,151.89,151.8,27.66479]
[1641434081956,27.66479,151.91,151.8,27.66479]
[1641434082156,17.19039378,151.9,151.8,27.66479]
[1641434082457,17.19039378,151.9,151.84,4.0]
[1641434082857,17.19039378,151.9,151.85,4.0]
[1641434083057,17.19039378,151.9,151.84,4.0]
[1641434083259,17.19039378,151.9,151.85,4.0]
[1641434083459,17.19039378,151.93,151.85,4.0]
[1641434083658,17.19039378,151.93,151.85,31.66479]
[1641434083859,17.19039378,151.93,151.88,4.0]
[1641434084259,55.85408621,151.96,151.88,4.0]
[1641434084659,55.85408621,151.96,151.85,33.38479]
[1641434084860,55.85408621,151.96,151.86,4.0]
[1641434085260,55.85408621,151.96,151.85,33.38479]
[1641434085560,73.04447999,151.97,151.85,33.38479]
[1641434085761,27.66479,151.94,151.85,27.66479]
[1641434086261,31.66479,151.94,151.85,27.66479]
[1641434086563,31.66479,151.94,151.85,4.65385098]
[1641434086861,27.66479,151.94,151.85,4.65385098]
[1641434087261,38.10679,151.94,151.85,4.65385098]
[1641434087461,4.0,151.9,151.85,4.65385098]
[1641434087666,4.0,151.88,151.84,5.90889484]
[1641434087863,4.0,151.86,151.8,13.97478552]
[1641434088063,8.349,151.86,151.8,13.97478552]
[1641434088362,4.349,151.86,151.8,13.97478552]
[1641434088662,4.349,151.86,151.74,27.66479]
[1641434088862,4.349,151.86,151.74,34.24395379]
[1641434089463,27.66479,151.87,151.76,4.0]
[1641434089664,27.66479,151.87,151.75,13.97478552]
[1641434089866,27.66479,151.87,151.78,27.66479]
[1641434090664,27.66479,151.87,151.78,41.63957552]
[1641434090864,27.66479,151.89,151.78,41.63957552]
[1641434091465,37.23937394,151.89,151.79,13.97478552]
[1641434091664,55.85408621,151.94,151.79,13.97478552]
[1641434091665,54.17507062,151.94,151.87,4.0]
[1641434091866,54.17507062,151.94,151.93,55.32958]
[1641434092064,54.17507062,151.94,151.93,27.66479]
[1641434092464,93.22410151,151.99,151.93,27.66479]
[1641434092668,26.03052643,152.03,151.93,27.66479]
[1641434092867,22.03052643,152.03,151.93,27.66479]
[1641434093566,63.8288,152.04,151.93,27.66479]
[1641434093766,63.8288,152.04,151.96,27.66479]
[1641434093967,31.66479,152.05,151.96,27.66479]
[1641434094569,4.0,152.04,151.96,27.66479]
[1641434094768,27.66479,152.05,151.96,27.66479]
[1641434094968,27.66479,152.05,151.96,33.02379]
[1641434095567,22.03396426,152.06,151.96,33.02379]
[1641434095768,22.03396426,152.06,152.01,27.66479]
[1641434095969,22.03396426,152.06,152.01,33.34679]
[1641434096367,64.0816,152.08,152.01,33.34679]
[1641434096568,27.66479,152.11,152.01,33.34679]
[1641434096969,4.0,152.08,152.01,33.34679]
[1641434097268,4.0,152.07,151.96,34.23638756]
[1641434097471,4.0,152.08,151.96,38.23638756]
[1641434097668,4.0,152.08,151.96,27.66479]
[1641434097870,27.66479,152.04,151.96,27.66479]
[1641434098669,12.15776482,152.03,151.96,27.66479]
[1641434101673,12.15776482,152.03,151.97,4.0]
[1641434101873,12.15776482,152.05,151.97,4.0]
[1641434102072,12.15776482,152.05,151.96,32.40879]
[1641434102272,12.15776482,152.05,151.96,36.40879]
[1641434102673,55.8103333,152.06,151.96,36.40879]
[1641434103075,55.8103333,152.06,151.97,4.0]
[1641434103275,55.8103333,152.06,151.96,31.66479]
[1641434103477,55.8103333,152.06,151.99,4.0]
[1641434103675,55.8103333,152.06,151.98,4.0]
[1641434103874,55.8103333,152.06,152.03,27.66479]
[1641434104076,9.68915944,152.06,152.03,36.64779]
[1641434104275,9.68915944,152.06,152.03,32.64779]
[1641434104577,4.86900566,152.06,152.03,32.64779]
[1641434104776,17.02677048,152.08,152.03,32.64779]
[1641434105877,17.02677048,152.08,152.03,27.66479]
[1641434106076,17.02677048,152.08,152.03,55.32958]
[1641434106277,100.40369186,152.15,152.03,55.32958]
[1641434106877,4.0,152.13,152.03,27.66479]
[1641434107078,4.0,152.06,151.97,20.54616715]
[1641434107278,4.0,152.05,151.97,20.54616715]
[1641434107478,5.461,152.06,151.97,20.54616715]
[1641434107679,5.461,152.06,151.98,4.0]
[1641434107879,4.0,152.13,152.01,6.56965476]
[1641434108080,120.88889151,152.11,152.03,27.66479]
[1641434108879,124.88889151,152.11,152.03,27.66479]
[1641434109279,12.15776482,152.1,152.03,27.66479]
[1641434110284,12.15776482,152.1,152.03,16.50436588]
[1641434110684,12.15776482,152.1,152.04,4.0]
[1641434110885,12.15776482,152.1,152.04,6.678]
[1641434111085,144.54104414,152.13,152.05,4.0]
[1641434111489,144.54104414,152.13,152.04,10.678]
[1641434112087,144.54104414,152.13,152.04,6.678]
[1641434112285,144.54104414,152.13,151.93,97.10908552]
[1641434112286,4.0,152.05,151.98,13.97478552]
[1641434112686,4.0,152.07,151.98,13.97478552]
[1641434113186,37.18971977,152.09,151.96,10.57181349]
[1641434113389,37.18971977,152.01,151.97,6.57116572]
[1641434113789,68.0689,152.09,151.98,4.0]
[1641434114087,68.0689,152.09,151.97,6.57116572]
[1641434114088,68.0689,152.09,151.97,10.57116572]
[1641434114289,17.13415077,152.08,152.03,27.66479]
[1641434115592,55.78944234,152.12,152.03,27.66479]
[1641434115792,4.0,152.11,152.01,27.66479]
[1641434115995,4.0,152.11,151.99,6.57030223]
[1641434116193,27.66479,152.06,151.97,41.63957552]
[1641434116393,32.65679,152.06,151.98,13.97478552]
[1641434116794,4.0,152.04,151.98,13.97478552]
[1641434116996,4.0,152.03,151.98,13.97478552]
[1641434117195,4.0,152.03,151.93,13.97478552]
[1641434117395,12.13072756,152.05,151.97,6.57138163]
[1641434117595,12.13072756,152.05,151.97,15.55338163]
[1641434117795,12.13072756,152.05,151.97,4.982]
[1641434118195,12.13072756,152.05,151.99,27.66479]
[1641434118597,12.13072756,152.05,151.97,4.982]
[1641434118996,12.13072756,152.05,151.97,11.55316572]
[1641434119498,12.13072756,152.06,151.97,11.55316572]
[1641434119697,12.13072756,152.06,151.96,27.66479]
[1641434120197,27.66479,152.04,151.96,27.66479]
[1641434120597,38.08179,152.04,151.93,41.63957552]
[1641434121200,4.0,152.02,151.93,41.63957552]
[1641434121398,27.66479,152.04,151.93,41.63957552]
[1641434121598,29.27254793,152.03,151.93,27.66479]
[1641434122399,29.27254793,152.03,151.93,34.23789941]
[1641434122601,12.13072756,152.03,151.93,34.23789941]
[1641434123400,16.13072756,152.03,151.93,34.23789941]
[1641434123600,4.0,152.02,151.93,34.23789941]
[1641434123803,4.0,152.01,151.93,27.66479]
[1641434124100,12.13072756,152.03,151.9,27.66479]
[1641434124299,27.66479,151.99,151.9,27.66479]
[1641434124902,31.66479,151.99,151.9,27.66479]
[1641434125101,31.66479,151.99,151.87,27.66479]
[1641434125501,12.13072756,151.98,151.87,27.66479]
[1641434126301,12.13072756,151.98,151.87,55.32958]
[1641434126901,12.13072756,151.98,151.87,59.32958]
[1641434127101,12.13072756,151.98,151.89,6.57483809]
[1641434127303,12.13072756,151.98,151.89,11.24683809]
[1641434128100,12.13072756,151.98,151.89,4.672]
[1641434128301,15.50869397,151.98,151.9,1.26128741]
[1641434129302,15.50869397,151.98,151.88,1.26128741]
[1641434129503,4.0,151.94,151.88,1.26128741]
[1641434129802,4.0,151.95,151.88,0.00128741]
[1641434130002,4.0,151.91,151.86,13.97478552]
[1641434130202,27.66479,151.87,151.86,13.97478552]
[1641434130602,4.0,151.95,151.86,13.97478552]
[1641434130802,70.9164,151.97,151.86,13.97478552]
[1641434131002,66.9164,151.97,151.86,23.34878552]
[1641434131202,66.9164,151.97,151.9,4.0]
[1641434131502,66.9164,151.97,151.9,6.052]
[1641434131704,17.09354069,151.95,151.9,6.052]
[1641434132102,55.78944234,151.99,151.9,6.052]
[1641434132304,12.10302635,151.96,151.9,6.052]
[1641434132601,12.10302635,151.96,151.89,27.66479]
[1641434133403,12.10302635,151.98,151.87,6.57548659]
[1641434133603,12.10302635,151.98,151.84,13.97478552]
[1641434133802,16.10302635,151.98,151.84,13.97478552]
[1641434134205,27.66479,151.92,151.84,13.97478552]
[1641434134405,32.16379,151.92,151.84,13.97478552]
[1641434135706,12.10302635,151.91,151.83,6.57721652]
[1641434136105,12.10302635,151.91,151.83,10.57721652]
[1641434136306,12.10302635,151.91,151.84,27.66479]
[1641434136506,12.10302635,151.91,151.84,33.77079]
[1641434136907,12.10302635,151.91,151.84,37.77079]
[1641434137810,12.10302635,151.91,151.85,4.0]
[1641434138010,37.22650873,151.93,151.84,37.77079]
[1641434138211,63.8061,151.95,151.84,37.77079]
[1641434138212,37.22650873,151.94,151.87,27.66479]
[1641434139211,12.13751462,151.94,151.87,24.22014175]
[1641434139611,12.13751462,151.94,151.87,20.22014175]
[1641434140011,37.22650873,151.96,151.87,24.22014175]
[1641434140212,64.89129873,151.96,151.87,20.22014175]
[1641434140411,64.89129873,151.96,151.87,24.22014175]
[1641434141013,49.36402335,151.95,151.87,20.22014175]
[1641434143518,12.13751462,151.95,151.87,34.19492727]
[1641434143717,16.13751462,151.95,151.87,13.97478552]
[1641434144319,27.66479,151.9,151.87,13.97478552]
[1641434144517,27.66479,151.9,151.85,20.45011034]
[1641434144717,49.36402335,151.95,151.86,4.0]
[1641434144918,49.36402335,151.95,151.86,8.934]
[1641434145318,49.36402335,151.95,151.87,4.0]
[1641434145516,49.36402335,151.95,151.86,8.934]
[1641434145717,12.13751462,151.95,151.86,22.90878552]
[1641434146217,12.13751462,151.95,151.88,27.66479]
[1641434147019,12.13751462,151.95,151.87,13.97478552]
[1641434147618,12.13751462,151.95,151.86,13.97478552]
[1641434148219,12.13751462,151.95,151.88,27.66479]
[1641434148619,12.13751462,151.95,151.88,31.66479]
[1641434148819,12.13751462,151.95,151.89,4.65311352]
[1641434149019,12.13751462,151.95,151.89,11.23911352]
[1641434149221,12.13751462,151.95,151.93,4.0]
[1641434149419,37.22650873,151.96,151.94,4.0]
[1641434149622,37.22650873,151.98,151.94,4.0]
[1641434150021,37.22650873,151.98,151.93,9.434]
[1641434150219,37.22650873,151.98,151.94,4.0]
[1641434150420,37.22650873,151.98,151.96,27.66479]
[1641434151021,37.22650873,152.01,151.96,27.66479]
[1641434151223,37.22650873,152.01,151.93,37.75190352]
[1641434151421,37.22650873,152.01,151.93,32.31790352]
[1641434151621,37.22650873,152.01,151.93,4.65311352]
[1641434152021,37.22650873,152.01,151.92,4.65311352]
[1641434152223,37.22650873,151.99,151.92,4.65311352]
[1641434152421,37.22650873,151.99,151.93,27.66479]
[1641434154326,37.22650873,152.01,151.93,32.31790352]
[1641434155027,37.22650873,152.0,151.93,27.66479]
[1641434155426,37.22650873,152.0,151.93,31.66479]
[1641434155626,37.22650873,152.0,151.94,4.0]
[1641434155826,37.22650873,152.0,151.94,8.971]
[1641434156626,37.22650873,152.0,151.99,4.0]
[1641434156827,37.22650873,152.0,151.99,9.811]
[1641434157027,37.22650873,152.04,151.99,5.811]
[1641434157627,37.22650873,152.04,151.99,9.811]
[1641434158428,37.22650873,152.04,152.01,27.66479]
[1641434158628,37.22650873,152.06,152.01,27.66479]
[1641434159028,37.22650873,152.06,152.03,4.0]
[1641434159230,37.22650873,152.06,152.03,8.905]
[1641434159428,37.22650873,152.06,152.03,4.905]
[1641434159628,37.22650873,152.07,152.03,4.905]
[1641434160429,37.22650873,152.07,152.05,27.66479]
[1641434160630,37.22650873,152.07,152.01,38.88734249]
[1641434160829,37.22650873,152.09,152.01,38.88734249]
[1641434161530,37.22650873,152.09,152.04,4.0]
[1641434161729,37.22650873,152.09,152.01,43.33834249]
[1641434161930,37.22650873,152.08,152.01,43.33834249]
[1641434162329,37.22650873,152.08,152.01,47.33834249]
[1641434162530,37.22650873,152.08,152.06,27.66479]
[1641434162729,37.22650873,152.11,152.06,33.68179]
[1641434163930,37.22650873,152.11,152.06,27.66479]
[1641434164530,37.22650873,152.1,152.06,38.04579]
[1641434164931,37.22650873,152.1,152.07,4.0]
[1641434165132,37.22650873,152.1,152.06,34.04579]
[1641434166632,37.22650873,152.1,152.08,4.0]
[1641434166834,67.91955442,152.15,152.09,4.0]
[1641434167034,55.78944234,152.15,152.08,4.0]
[1641434167232,55.78944234,152.15,152.06,44.61328746]
[1641434167433,55.78944234,152.15,152.08,4.0]
[1641434168034,29.26497187,152.16,152.08,4.0]
[1641434168234,29.26497187,152.16,152.06,45.26640098]
[1641434168434,29.26497187,152.16,152.1,4.0]
[1641434168635,29.26497187,152.16,152.11,4.0]
[1641434168835,29.26497187,152.16,152.12,4.0]
[1641434169234,29.26497187,152.17,152.12,4.0]
[1641434169434,29.26497187,152.17,152.11,4.0]
[1641434169634,29.26497187,152.17,152.12,4.0]
[1641434170135,29.26497187,152.19,152.12,4.0]
[1641434170535,29.26497187,152.19,152.13,27.66479]
[1641434171335,29.26497187,152.19,152.1,27.66479]
[1641434172036,55.78944234,152.19,152.1,27.66479]
[1641434174043,71.29816072,152.19,152.1,27.66479]
[1641434175143,55.78944234,152.19,152.1,27.66479]
[1641434175844,15.50871838,152.19,152.1,27.66479]
[1641434176244,15.50871838,152.19,152.1,34.23056263]
[1641434176445,15.50871838,152.19,152.11,4.0]
[1641434176644,55.78944234,152.2,152.11,10.39]
[1641434176845,21.96146833,152.22,152.11,10.39]
[1641434177045,21.96146833,152.22,152.12,4.0]
[1641434177645,21.96146833,152.22,152.13,4.0]
[1641434177847,94.60999,152.23,152.13,4.0]
[1641434178245,94.60999,152.23,152.11,6.39]
[1641434178246,94.60999,152.23,152.12,4.0]
[1641434178447,4.0,152.22,152.11,6.39]
[1641434178747,4.0,152.2,152.1,27.66479]
[1641434178946,4.0,152.19,152.1,27.66479]
[1641434179846,3.31796686,152.18,152.1,27.66479]
[1641434180649,27.66479,152.17,152.1,27.66479]
[1641434181748,27.66479,152.17,152.06,27.66479]
[1641434182148,31.66479,152.17,152.06,27.66479]
[1641434182348,4.0,152.14,152.03,6.56857593]
[1641434182548,27.66479,152.13,152.03,6.56857593]
[1641434182948,31.66479,152.13,152.03,6.56857593]
[1641434183149,4.0,152.12,152.03,6.56857593]
[1641434184149,31.66479,152.13,152.03,6.56857593]
[1641434184650,27.66479,152.1,152.03,6.56857593]
[1641434185453,15.49747382,152.12,152.03,6.56857593]
[1641434185850,15.49747382,152.12,152.02,27.66479]
[1641434186250,15.49747382,152.12,152.02,32.31790352]
[1641434186651,27.66479,152.09,152.02,32.31790352]
[1641434187452,37.19919646,152.06,152.02,27.66479]
[1641434188452,15.49747382,152.08,152.02,27.66479]
[1641434188652,15.49747382,152.08,152.02,33.98779]
[1641434189251,37.19919646,152.1,152.03,5.92117892]
[1641434190757,37.19919646,152.1,152.06,31.66479]
[1641434190955,37.19919646,152.1,152.09,4.0]
[1641434191153,15.49747382,152.13,152.07,4.0]
[1641434191355,108.47094028,152.15,152.08,4.65311352]
[1641434191553,52.68149794,152.15,152.08,4.65311352]
[1641434192554,37.18402412,152.15,152.07,5.92117892]
[1641434192753,37.18402412,152.15,152.09,27.66479]
[1641434193256,4.0,152.18,152.09,27.66479]
[1641434193456,3.38125216,152.17,152.09,27.66479]
[1641434193856,7.38125216,152.17,152.09,27.66479]
[1641434194058,3.38125216,152.17,152.09,27.66479]
[1641434194456,4.0,152.16,152.09,27.66479]
[1641434194656,27.66479,152.16,152.09,27.66479]
[1641434195659,15.49747382,152.15,152.09,27.66479]
[1641434197760,32.60120037,152.19,152.09,27.66479]
[1641434197961,32.60120037,152.19,152.09,34.00779]
[1641434198861,32.60120037,152.19,152.13,27.66479]
[1641434199561,32.60120037,152.19,152.13,34.54479]
[1641434199762,32.60120037,152.19,152.13,41.1092696]
[1641434199964,15.49747382,152.19,152.14,4.0]
[1641434200163,36.60120037,152.2,152.13,37.67374679]
[1641434200564,19.49747382,152.2,152.13,37.67374679]
[1641434200766,15.49747382,152.2,152.18,27.66479]
[1641434200965,15.49747382,152.2,152.18,33.04579]
[1641434201167,12.11622166,152.19,152.18,33.04579]
[1641434202567,12.11622166,152.23,152.18,33.04579]
[1641434202866,12.11622166,152.23,152.22,27.66479]
[1641434203065,12.11622166,152.23,152.22,33.96979]
[1641434204072,4.0,152.28,152.22,33.96979]
[1641434204371,84.98961603,152.3,152.22,27.66479]
[1641434204372,4.0,152.27,152.22,27.66479]
[1641434204872,84.98961603,152.3,152.22,55.32958]
[1641434205072,84.98961603,152.3,152.22,61.96858]
[1641434205272,4.0,152.28,152.22,61.96858]
[1641434206174,4.5811546,152.28,152.22,61.96858]
[1641434206372,4.5811546,152.28,152.23,6.55995802]
[1641434206772,4.2459446,152.35,152.27,27.66479]
[1641434206972,87.45423234,152.39,152.27,34.28679]
[1641434207473,4.0,152.31,152.27,34.28679]
[1641434207673,16.08504353,152.31,152.27,34.28679]
[1641434208173,12.08504353,152.31,152.27,34.28679]
[1641434208374,4.0,152.31,152.27,34.28679]
[1641434208777,4.0,152.31,152.3,27.66479]
[1641434210275,4.0,152.31,152.3,16.52211034]
[1641434211277,4.0,152.33,152.3,16.52211034]
[1641434211475,33.16310583,152.34,152.3,16.52211034]
[1641434211676,17.0780623,152.34,152.3,16.52211034]
[1641434211975,37.14008459,152.31,152.3,16.52211034]
[1641434212475,37.14008459,152.31,152.3,23.0792724]
[1641434212775,37.14008459,152.32,152.3,23.0792724]
[1641434213175,37.14008459,152.32,152.3,16.52211034]
[1641434213375,4.0,152.31,152.3,16.52211034]
[1641434213576,37.14008459,152.32,152.3,16.52211034]
[1641434213776,41.14008459,152.33,152.3,16.52211034]
[1641434213977,37.14008459,152.33,152.3,16.52211034]